bitfinex/quotes_ETHUSD_20241119
["timestamp","ask_amount","ask_price","bid_price","bid_amount"]
[1731978218136,3.16455,3160.0,3159.6,0.3166]
[1731978218432,3.16438,3160.2,3159.6,0.3166]
[1731978218641,3.16452,3160.1,3159.6,0.3166]
[1731978218935,0.63209362,3159.9,3159.6,0.3166]
[1731978219083,3.16477,3159.8,3159.7,0.3166]
[1731978219288,6.16477,3159.8,3159.7,0.3166]
[1731978220124,6.71477,3159.8,3159.7,0.3166]
[1731978220291,6.71477,3159.8,3159.4,0.3166]
[1731978220292,3.71509,3159.5,3159.4,0.3166]
[1731978220627,3.0,3159.6,3159.4,0.3166]
[1731978220831,3.0,3159.7,3159.4,0.3166]
[1731978221344,3.0,3159.7,3159.5,0.3166]
[1731978222395,3.0,3159.7,3159.1,0.7722]
[1731978222396,3.71504,3159.6,3159.3,0.3166]
[1731978223425,0.55,3159.6,3159.2,0.3166]
[1731978223629,6.71525,3159.3,3159.2,0.3166]
[1731978224534,0.55,3159.0,3158.7,0.3166]
[1731978225561,3.16528,3159.3,3158.2,1.0888]
[1731978225562,3.16535,3159.2,3158.2,1.0888]
[1731978225769,3.16581,3158.8,3158.2,1.0888]
[1731978225901,3.16581,3158.8,3158.4,0.3166]
[1731978226101,3.16601,3158.6,3158.4,0.3166]
[1731978226456,3.16601,3158.6,3158.1,0.3166]
[1731978226457,3.71612,3158.5,3158.1,0.3166]
[1731978226656,3.0,3158.2,3158.1,0.3166]
[1731978226864,3.55,3158.2,3158.1,0.3166]
[1731978227143,3.55,3158.1,3157.9,0.3166]
[1731978227298,0.55,3158.1,3157.9,0.3166]
[1731978227699,3.55,3158.0,3157.9,0.3166]
[1731978227928,3.55,3158.0,3157.6,0.3166]
[1731978228146,6.71652,3158.1,3157.6,0.3166]
[1731978228299,3.16657,3158.0,3157.6,0.3166]
[1731978228499,6.71654,3158.1,3157.6,0.3166]
[1731978228743,0.55,3157.9,3157.6,0.3166]
[1731978228941,0.55,3157.9,3157.5,0.3166]
[1731978229149,3.71666,3157.9,3157.7,0.3166]
[1731978229804,1.46923278,3158.3,3157.2,0.7594]
[1731978229805,0.55,3157.7,3157.2,0.7594]
[1731978230201,0.55,3157.7,3157.2,3.92674]
[1731978230432,0.55,3157.7,3157.2,3.92675]
[1731978230634,0.55,3157.7,3157.2,0.7594]
[1731978230909,6.16676,3157.8,3156.9,3.16764]
[1731978230910,0.55,3157.5,3156.9,3.16764]
[1731978231212,0.55,3157.5,3156.9,3.92704]
[1731978231448,3.0,3157.9,3157.2,3.16736]
[1731978231645,0.55,3158.0,3157.5,3.16699]
[1731978231807,3.71656,3158.0,3157.4,3.16707]
[1731978232261,0.55,3157.8,3157.2,3.16735]
[1731978232557,0.55,3157.9,3157.3,3.16725]
[1731978232849,0.55,3157.9,3157.0,0.3166]
[1731978232850,0.55,3157.8,3157.1,3.16745]
[1731978233057,0.55,3157.8,3157.1,3.48405]
[1731978233058,3.16689,3157.7,3157.1,3.48405]
[1731978233261,3.71676,3157.8,3157.2,3.16729]
[1731978234054,3.71676,3157.8,3157.1,1.1318057]
[1731978234055,3.71676,3157.8,3157.1,0.3166]
[1731978234506,0.55,3157.6,3157.1,0.3166]
[1731978234923,3.71704,3157.6,3157.0,0.3166]
[1731978235210,0.55,3157.3,3157.1,0.3166]
[1731978235411,3.16759,3157.0,3156.6,0.7751]
[1731978235649,3.16736,3157.2,3156.6,0.7751]
[1731978235650,0.55,3157.1,3156.6,0.7751]
[1731978235876,3.97392,3157.7,3156.9,0.3166]
[1731978236168,0.55,3157.2,3156.9,0.3166]
[1731978236819,3.55,3157.4,3156.9,0.3166]
[1731978237361,6.71726,3157.4,3156.9,0.3166]
[1731978237765,0.55,3157.4,3156.9,3.48425]
[1731978237925,6.71696,3157.6,3157.0,3.16752]
[1731978238274,0.55,3157.4,3156.9,0.3166]
[1731978238425,0.55,3157.4,3156.9,3.832609]
[1731978238622,3.62924565,3157.9,3157.2,3.98588]
[1731978238835,3.16636,3158.2,3157.6,3.16694]
[1731978239136,0.7936,3158.3,3157.3,0.3166]
[1731978239137,0.7936,3158.3,3157.3,0.77853132]
[1731978239338,3.16615,3158.5,3157.4,3.16716]
[1731978239339,3.16657,3158.0,3157.4,3.16716]
[1731978239638,3.16654,3158.1,3157.5,0.3166]
[1731978239898,6.96480059,3158.3,3157.7,0.3166]
[1731978240173,3.16647,3158.1,3157.7,0.3166]
[1731978240338,3.16657,3158.0,3157.7,0.3166]
[1731978240541,3.0,3158.1,3157.7,0.3166]
[1731978240743,3.0,3158.3,3158.0,1.0828]
[1731978240978,3.1658,3158.8,3158.0,1.0828]
[1731978241126,0.7936,3158.9,3158.3,0.3166]
[1731978241465,3.1656,3159.0,3158.3,0.3166]
[1731978241466,3.16583,3158.8,3158.3,0.3166]
[1731978241681,3.16555,3159.0,3158.3,0.3166]
[1731978241829,3.16603,3158.6,3158.3,0.3166]
[1731978242029,3.16603,3158.6,3158.1,0.3166]
[1731978242030,3.16606,3158.5,3158.1,0.3166]
[1731978242524,3.71636,3158.2,3158.1,0.3166]
[1731978242725,6.71636,3158.2,3158.1,0.3166]
[1731978243187,7.33455551,3158.2,3158.1,0.3166]
[1731978244251,0.55,3157.9,3157.4,3.4837]
[1731978244452,0.55,3157.9,3157.6,0.3166]
[1731978244649,3.71672,3157.9,3157.6,0.3166]
[1731978245191,0.61819551,3158.2,3157.6,0.3166]
[1731978245192,3.55,3157.7,3157.6,0.3166]
[1731978245749,6.71686,3157.7,3157.6,0.3166]
[1731978246680,3.16714,3157.5,3157.1,0.3166]
[1731978246890,3.93157,3157.3,3157.1,0.3166]
[1731978247052,3.16727,3157.3,3157.1,0.3166]
[1731978247574,3.16727,3157.3,3156.7,3.16784]
[1731978247575,3.16727,3157.3,3156.7,0.3166]
[1731978247775,3.16754,3157.1,3156.7,0.3166]
[1731978247972,0.55,3157.0,3156.7,0.3166]
[1731978248699,0.55,3157.0,3156.5,3.16804]
[1731978248700,0.55,3157.0,3156.6,0.3166]
[1731978248901,0.55,3156.8,3156.6,0.3166]
[1731978249056,3.71786,3156.7,3156.6,0.3166]
[1731978249459,3.71786,3156.7,3156.4,3.64060711]
[1731978249460,3.16806,3156.5,3156.4,3.64060711]
[1731978249770,6.71806,3156.5,3156.4,3.64060711]
[1731978249980,7.51866,3156.5,3156.4,3.64060711]
[1731978250596,10.56982696,3156.5,3156.4,3.64060711]
[1731978250803,7.51866,3156.5,3156.4,3.64060711]
[1731978253810,8.16019262,3156.5,3156.4,3.64060711]
[1731978256283,11.8629478,3156.5,3156.4,1.01303574]
[1731978257244,6.80959262,3156.5,3156.4,1.01303574]
[1731978258481,7.47638568,3156.5,3156.4,1.01303574]
[1731978259346,11.17914086,3156.5,3156.4,0.71192695]
[1731978259551,11.17914086,3156.5,3155.7,0.3166]
[1731978259552,3.55,3156.3,3155.7,0.3166]
[1731978259748,8.43074086,3156.5,3155.7,0.3166]
[1731978259749,6.71876,3155.8,3155.7,0.3166]
[1731978259949,6.71876,3155.8,3155.6,3.37491871]
[1731978259950,7.52046,3155.7,3155.6,3.37491871]
[1731978260142,11.22321518,3155.7,3155.6,3.37491871]
[1731978260547,11.22321518,3155.7,3155.6,3.05831871]
[1731978260973,11.22321518,3155.7,3155.6,2.1566376]
[1731978261285,11.22321518,3155.7,3155.6,0.90168111]
[1731978261485,6.71917,3155.4,3155.3,0.3166]
[1731978261629,7.52077,3155.4,3155.3,0.3166]
[1731978261836,3.55,3155.3,3154.8,0.3166]
[1731978262070,3.0,3155.0,3154.8,0.3166]
[1731978262268,3.1695,3155.1,3154.8,0.3166]
[1731978262449,3.1695,3155.1,3155.0,0.0312]
[1731978262950,3.1695,3155.1,3154.8,0.3166]
[1731978263749,3.16959,3155.0,3154.8,0.3166]
[1731978264494,3.1695,3155.1,3154.8,0.3166]
[1731978264638,3.16967,3154.9,3154.8,0.3166]
[1731978264838,3.16959,3155.0,3154.8,0.3166]
[1731978265150,3.16949,3155.1,3154.8,0.3166]
[1731978265354,3.0,3155.2,3154.8,0.3166]
[1731978265553,3.0,3155.2,3154.7,7.69856032]
[1731978265554,3.71917,3155.4,3155.1,0.0312]
[1731978266040,3.16937,3155.2,3155.1,0.0312]
[1731978266359,3.16937,3155.2,3155.0,0.3166]
[1731978266360,3.16947,3155.1,3155.0,0.3166]
[1731978266545,0.55,3155.4,3154.8,0.3166]
[1731978266546,3.16934,3155.3,3154.8,0.3166]
[1731978266745,3.16938,3155.2,3154.8,0.3166]
[1731978267082,4.42415872,3155.7,3155.0,0.3166]
[1731978267389,3.16929,3155.3,3155.0,0.3166]
[1731978267577,3.16924,3155.4,3155.0,0.3166]
[1731978267954,3.16947,3155.2,3155.1,0.3166]
[1731978269138,3.16962,3155.0,3154.8,0.3166]
[1731978270037,3.16967,3154.9,3154.8,0.3166]
[1731978270150,3.16962,3155.0,3154.8,0.3166]
[1731978270762,3.16939,3155.2,3154.8,0.3166]
[1731978270985,3.16957,3155.0,3154.8,0.3166]
[1731978271187,3.16967,3154.9,3154.8,0.3166]
[1731978271448,3.71967,3154.9,3154.8,0.3166]
[1731978272153,3.16967,3154.9,3154.8,0.3166]
[1731978272951,3.16956,3155.1,3154.8,0.3166]
[1731978273270,3.16967,3154.9,3154.8,0.3166]
[1731978273584,3.71967,3154.9,3154.8,0.3166]
[1731978273803,7.49697,3154.9,3154.8,0.3166]
[1731978274380,10.55617062,3154.9,3154.8,0.3166]
[1731978274694,7.49707,3154.8,3154.7,3.74223032]
[1731978275134,3.7773,3154.8,3154.7,3.74223032]
[1731978275278,6.16977,3154.8,3154.7,3.74223032]
[1731978276123,6.71977,3154.8,3154.7,3.74223032]
[1731978276993,6.71977,3154.8,3154.7,4.05883032]
[1731978277194,3.62827988,3154.9,3154.7,4.05883032]
[1731978277506,3.16935,3155.3,3154.9,0.3166]
[1731978278124,0.33093507,3155.7,3153.0,0.01]
[1731978278362,0.33093507,3155.7,3151.3,4.04330269]
[1731978278363,0.01,3151.5,3151.3,4.04330269]
[1731978278643,0.8322,3151.9,3151.4,2.3556012]
[1731978278644,3.17269,3151.9,3151.4,2.3556012]
[1731978278774,3.25445876,3152.3,3151.5,0.0312]
[1731978278775,3.17286,3151.8,3151.5,0.0312]
[1731978278983,0.55,3151.8,3151.6,0.23612153]
[1731978279319,0.01,3151.9,3151.4,0.3166]
[1731978279532,0.56,3151.7,3151.3,4.04330269]
[1731978280236,0.56,3151.5,3151.3,3.32912151]
[1731978280377,1.49548799,3151.4,3151.3,0.94846991]
[1731978280723,0.94548799,3151.4,3151.3,0.94846991]
[1731978280890,0.94548799,3151.4,3151.3,1.71206991]
[1731978281090,0.94548799,3151.4,3151.3,4.88535991]
[1731978281287,0.74710433,3151.4,3151.3,4.88535991]
[1731978281679,0.74545948,3151.4,3151.3,4.88535991]
[1731978281875,0.74545948,3151.4,3151.3,1.71206991]
[1731978282396,0.28671518,3151.4,3151.3,1.71206991]
[1731978283703,0.28671518,3151.6,3151.3,1.71206991]
[1731978283984,0.01,3151.7,3151.3,1.71206991]
[1731978283985,0.28671518,3151.5,3151.3,1.71206991]
[1731978284201,0.28671518,3151.4,3151.3,1.71206991]
[1731978284937,3.18265,3152.0,3151.3,1.71206991]
[1731978285118,3.18265,3152.0,3151.3,0.94846991]
[1731978285119,6.18319,3151.4,3151.3,0.94846991]
[1731978285367,7.47694319,3151.4,3151.3,0.94846991]
[1731978285684,7.47694319,3151.4,3150.4,3.99628836]
[1731978285685,3.01,3150.8,3150.4,3.99628836]
[1731978285832,0.28608601,3150.7,3150.4,3.99628836]
[1731978286183,0.7709,3150.5,3150.4,3.99628836]
[1731978286381,0.29608601,3150.5,3150.4,3.99628836]
[1731978286685,0.28608601,3150.5,3150.4,3.99628836]
[1731978286890,3.46017601,3150.5,3150.4,3.99628836]
[1731978287032,0.28608601,3150.5,3150.4,3.99628836]
[1731978287235,0.01,3150.6,3150.4,3.99628836]
[1731978287430,0.2852858,3150.8,3150.4,3.99628836]
[1731978287778,3.17314,3151.5,3150.4,3.99628836]
[1731978287779,0.01,3151.7,3150.6,3.17399]
[1731978287936,0.7725,3152.0,3151.3,0.7626]
[1731978287937,0.01,3151.6,3151.3,0.7626]
[1731978288284,3.1726,3152.0,3151.3,0.7626]
[1731978288285,0.28546837,3151.7,3151.3,0.7626]
[1731978288578,0.28546837,3151.6,3151.3,3.93588]
[1731978288781,0.74221777,3151.9,3151.4,3.17318]
[1731978289010,0.28553299,3151.8,3151.5,3.17304]
[1731978289214,0.01,3152.0,3151.4,3.884095]
[1731978289392,0.01,3152.0,3151.5,3.17306]
[1731978289560,0.01,3152.0,3151.4,0.710915]
[1731978289904,0.2856295,3152.0,3151.4,0.710915]
[1731978290107,0.01,3152.7,3152.1,3.17243]
[1731978290251,0.28565712,3152.6,3152.3,3.17225]
[1731978290609,0.28565712,3152.5,3152.4,3.17218]
[1731978291059,0.28565712,3153.0,3152.4,3.17218]
[1731978291255,0.28575083,3152.9,3152.7,3.17186]
[1731978291465,0.28575083,3152.8,3152.7,3.17188]
[1731978291694,3.18111,3153.5,3152.8,3.20288]
[1731978291695,0.28583248,3153.3,3152.8,3.20288]
[1731978291863,0.29583396,3153.2,3152.8,0.0312]
[1731978292076,0.28583396,3153.2,3153.1,3.17148]
[1731978292276,0.28583396,3153.2,3153.0,0.7956]
[1731978292486,0.28583396,3153.1,3153.0,0.7956]
[1731978292726,0.28596958,3153.1,3153.0,0.7956]
[1731978292855,0.01,3153.6,3153.0,0.7956]
[1731978293212,0.28598448,3153.5,3153.2,3.17137]
[1731978293418,0.28598448,3153.5,3153.2,3.1713]
[1731978293555,0.01,3153.5,3153.0,0.7956]
[1731978293759,0.28598448,3153.4,3153.0,0.7956]
[1731978293981,0.28598448,3153.4,3153.1,3.17145]
[1731978294182,3.17069,3153.9,3153.1,3.17145]
[1731978294183,0.33080109,3154.9,3154.2,0.8349]
[1731978294465,2.56914501,3155.7,3154.9,3.16967]
[1731978294466,0.33067835,3155.0,3154.9,3.16967]
[1731978294974,3.16849,3156.1,3155.3,3.16926]
[1731978294975,3.1686,3156.0,3155.3,3.16926]
[1731978295211,0.64805412,3156.1,3155.2,0.7838]
[1731978295212,0.33059078,3155.7,3155.4,3.16916]
[1731978295412,0.33059078,3155.7,3155.6,3.16896]
[1731978295584,0.33059078,3155.7,3155.6,3.23233153]
[1731978295762,0.33059078,3155.7,3155.4,3.16916]
[1731978295763,3.16777,3156.8,3156.0,3.16855]
[1731978295961,3.16777,3156.8,3155.4,3.16916]
[1731978295962,0.61879617,3156.7,3156.1,3.16846]
[1731978296362,0.61879617,3156.7,3156.1,3.16838]
[1731978296580,6.88075662,3157.2,3155.9,3.16866]
[1731978296581,3.16746,3157.1,3156.2,3.93206]
[1731978296779,3.71339662,3157.2,3156.2,3.93206]
[1731978296780,3.16759,3157.0,3156.2,3.93206]
[1731978297012,3.16775,3156.9,3156.2,0.7637]
[1731978297238,3.96865,3157.3,3156.2,0.7637]
[1731978297374,3.0,3156.9,3156.2,0.7637]
[1731978297575,3.71339662,3157.2,3155.7,0.8154]
[1731978297819,3.0,3157.1,3156.9,0.0312]
[1731978298038,3.71339662,3157.2,3156.9,0.0312]
[1731978298039,6.16756,3157.0,3156.9,0.0312]
[1731978298182,6.16767,3156.9,3155.9,3.16865]
[1731978298523,3.0,3156.7,3155.9,3.16865]
[1731978298833,3.0,3156.8,3155.7,0.8154]
[1731978299017,3.0,3156.7,3156.0,3.16851]
[1731978299625,3.0,3156.9,3156.0,3.16851]
[1731978299925,1.42627622,3157.3,3155.8,3.16871]
[1731978300136,3.1682,3156.4,3155.7,0.8154]
[1731978300437,3.0,3156.3,3155.7,0.8154]
[1731978300583,3.1678,3156.8,3155.9,3.16862]
[1731978301302,3.16822,3156.4,3155.7,0.8154]
[1731978301502,3.16836,3156.3,3155.7,0.8154]
[1731978301815,3.16704,3157.6,3156.5,3.16805]
[1731978302123,0.6316363,3157.7,3156.9,3.16756]
[1731978302334,3.16686,3157.7,3157.6,0.0312]
[1731978302829,3.16657,3158.0,3156.9,3.16765]
[1731978303128,1.46886553,3158.1,3156.8,0.7688]
[1731978303431,1.46886553,3158.1,3156.4,0.01]
[1731978303432,3.16707,3157.5,3156.6,3.16793]
[1731978303595,3.16666,3157.9,3157.0,3.16755]
[1731978303943,0.7942,3158.5,3157.4,3.16716]
[1731978304101,3.96026,3158.5,3157.4,3.16711]
[1731978304299,3.16637,3158.2,3157.4,3.16711]
[1731978304519,3.16637,3158.2,3157.5,3.16705]
[1731978304824,3.16637,3158.2,3157.3,3.16722]
[1731978305133,3.16637,3158.2,3157.3,3.16726]
[1731978305330,3.16694,3157.7,3157.1,0.7688]
[1731978306128,3.0,3158.2,3156.7,0.06334248]
[1731978306339,3.0,3157.9,3157.1,3.16737]
[1731978306624,3.0,3157.9,3156.6,3.95285]
[1731978306828,6.33428,3157.5,3156.6,3.95285]
[1731978306979,3.16713,3157.5,3156.7,3.16783]
[1731978307384,3.16707,3157.5,3156.6,0.7849]
[1731978307590,3.0,3157.6,3156.8,3.16774]
[1731978308314,3.16698,3157.6,3156.8,3.16774]
[1731978308531,3.0,3158.1,3156.6,0.7849]
[1731978308832,3.0,3158.1,3155.1,3.1694]
[1731978308833,3.16784,3156.8,3155.8,3.97734]
[1731978308999,3.16786,3156.7,3156.0,3.16856]
[1731978309387,3.16798,3156.6,3155.8,3.97734]
[1731978309745,3.16786,3156.7,3155.9,3.16858]
[1731978310036,3.16786,3156.7,3155.9,3.23194586]
[1731978310200,3.16767,3156.9,3155.9,0.06336586]
[1731978310402,4.09024502,3157.4,3155.9,0.06336586]
[1731978310403,0.7953,3157.5,3156.3,3.16818]
[1731978310586,3.0,3157.2,3156.1,3.16845]
[1731978310788,3.16746,3157.1,3156.3,3.16824]
[1731978310993,3.16746,3157.1,3156.4,3.16815]
[1731978311191,3.0,3157.2,3156.6,3.16788]
[1731978311417,3.0,3157.5,3156.9,3.16764]
[1731978311591,3.0,3157.5,3156.7,0.7793]
[1731978311791,3.16749,3157.1,3156.3,3.94746]
[1731978312002,3.16749,3157.1,3156.4,3.16815]
[1731978312544,3.16786,3156.7,3155.9,3.16856]
[1731978312766,3.16786,3156.7,3155.8,3.16868]
[1731978312908,3.16809,3156.5,3155.8,3.16868]
[1731978313648,3.16819,3156.4,3155.6,3.94822]
[1731978313823,3.16809,3156.5,3155.7,3.16883]
[1731978314344,3.0,3156.6,3155.7,3.16883]
[1731978314637,3.16806,3156.5,3155.9,0.3166]
[1731978314940,3.16832,3156.3,3155.9,0.3166]
[1731978315139,3.16841,3156.2,3155.9,0.3166]
[1731978315382,3.16832,3156.3,3155.9,0.3166]
[1731978315532,3.16808,3156.5,3155.7,0.3166]
[1731978315533,3.16839,3156.2,3155.7,0.3166]
[1731978315882,3.16839,3156.2,3155.2,0.01]
[1731978315883,6.16927,3155.3,3154.5,0.7878]
[1731978316097,3.1694,3155.2,3154.5,0.7878]
[1731978316237,3.0,3155.5,3154.9,3.16958]
[1731978316435,0.55,3156.0,3154.5,0.7878]
[1731978316436,3.16859,3156.0,3155.3,3.16925]
[1731978316783,6.16868,3155.9,3155.3,0.3166]
[1731978316934,3.16905,3155.6,3155.4,0.3166]
[1731978317133,3.0,3155.9,3154.6,3.93326]
[1731978317134,3.16917,3155.4,3154.6,3.93326]
[1731978317329,3.16906,3155.6,3154.8,3.16974]
[1731978317530,3.16909,3155.5,3154.7,3.16987]
[1731978317745,3.16865,3156.0,3154.7,0.3166]
[1731978317746,3.16936,3155.3,3154.7,0.3166]
[1731978317977,0.55,3155.7,3154.7,0.3166]
[1731978318176,3.16965,3155.0,3154.4,0.3166]
[1731978318382,3.16989,3154.7,3154.4,0.3166]
[1731978318599,0.7634,3155.6,3154.4,0.3166]
[1731978318600,3.16965,3155.0,3154.4,0.3166]
[1731978318883,3.16973,3154.9,3154.4,0.3166]
[1731978319128,3.16973,3154.9,3154.2,0.8159]
[1731978319129,3.16973,3154.9,3154.5,0.3166]
[1731978319273,3.16949,3155.1,3154.5,0.3166]
[1731978319472,3.16949,3155.1,3154.4,3.17016]
[1731978319719,3.16864,3156.0,3155.3,3.16923]
[1731978319921,0.798,3156.4,3154.7,3.16978]
[1731978320123,0.798,3156.4,3154.6,0.7928]
[1731978320124,3.16903,3155.6,3154.6,0.7928]
[1731978320425,3.16903,3155.6,3155.0,3.16956]
[1731978320637,3.1688,3155.8,3155.1,3.16943]
[1731978320978,3.0,3155.6,3155.1,3.16943]
[1731978321219,3.1693,3155.3,3154.6,0.7928]
[1731978321424,3.16907,3155.5,3154.7,3.16987]
[1731978321642,3.16907,3155.5,3154.8,3.16968]
[1731978321924,3.0,3155.6,3155.0,3.16954]
[1731978322089,3.16893,3155.7,3155.1,3.16946]
[1731978322419,3.16893,3155.7,3154.9,3.16967]
[1731978322580,3.16893,3155.7,3155.0,3.16955]
[1731978322809,3.16886,3155.7,3155.0,3.16955]
[1731978323192,3.16909,3155.5,3154.6,0.7928]
[1731978323525,3.16909,3155.5,3154.7,0.37670234]
[1731978323680,3.16909,3155.5,3154.9,3.16967]
[1731978323878,6.16869,3155.9,3155.0,3.16957]
[1731978324076,3.16863,3156.0,3155.2,3.16931]
[1731978324276,3.16879,3155.8,3154.7,3.1698]
[1731978324507,3.16879,3155.8,3155.0,3.16955]
[1731978324726,3.1689,3155.7,3155.0,3.16955]
[1731978325112,3.16879,3155.8,3155.1,3.16943]
[1731978325340,3.16907,3155.5,3154.9,3.16966]
[1731978325626,3.16892,3155.7,3155.1,3.16945]
[1731978325812,6.16872,3155.9,3155.2,3.16935]
[1731978326137,3.16874,3155.9,3155.2,3.16935]
[1731978326279,3.0,3155.8,3155.2,3.16935]
[1731978326628,3.0,3155.8,3155.1,3.1694]
[1731978326836,3.0,3155.8,3155.2,3.16934]
[1731978327000,6.16858,3156.0,3155.3,3.16924]
[1731978327202,3.16877,3155.8,3155.2,3.16935]
[1731978327402,3.16877,3155.8,3155.1,3.1694]
[1731978327745,3.16877,3155.8,3155.2,3.16934]
[1731978328033,6.1686,3156.0,3155.3,3.16922]
[1731978328342,0.63131392,3156.2,3154.9,0.3166]
[1731978328343,3.0,3156.1,3155.4,3.16909]
[1731978328502,3.0,3155.8,3155.0,0.8328]
[1731978328704,3.0,3155.8,3155.5,3.16905]
[1731978328906,3.16849,3156.1,3155.0,0.8328]
[1731978328907,3.16868,3155.9,3155.3,3.16926]
[1731978329240,3.16849,3156.1,3155.2,3.1693]
[1731978329241,6.16876,3155.8,3155.2,3.1693]
[1731978329543,6.16876,3155.8,3155.3,0.3166]
[1731978329891,6.16875,3155.9,3155.3,0.3166]
[1731978330209,3.0,3155.9,3155.3,3.48578]
[1731978330423,3.0,3156.1,3155.5,0.3166]
[1731978330634,6.16846,3156.1,3155.5,0.3166]
[1731978330937,6.16846,3156.1,3154.7,0.3166]
[1731978330938,3.7551,3155.6,3154.7,0.3166]
[1731978331110,3.0,3155.3,3154.7,3.48645]
[1731978331641,3.16937,3155.2,3154.7,0.3166]
[1731978331788,3.16937,3155.2,3154.0,0.8328]
[1731978331789,3.17004,3154.6,3154.0,0.8328]
[1731978331993,3.17004,3154.6,3154.1,0.3166]
[1731978331994,3.1702,3154.4,3154.1,0.3166]
[1731978332632,3.17004,3154.6,3154.1,0.3166]
[1731978332840,3.17004,3154.6,3153.7,3.48745]
[1731978332841,3.17001,3154.6,3153.7,3.48745]
[1731978333017,3.17027,3154.4,3153.9,0.3166]
[1731978333201,3.17001,3154.6,3153.9,3.48717]
[1731978333406,3.17007,3154.5,3153.9,3.48717]
[1731978333639,3.17001,3154.6,3154.1,0.3166]
[1731978333805,3.92487,3154.8,3154.1,0.3166]
[1731978333806,3.17015,3154.5,3154.1,0.3166]
[1731978334223,3.7551,3154.8,3154.1,0.3166]
[1731978334767,3.7551,3154.8,3154.3,0.3166]
[1731978334911,6.92493,3154.8,3154.3,0.3166]
[1731978335108,3.7551,3154.8,3154.3,0.3166]
[1731978335373,3.17001,3154.6,3154.3,0.3166]
[1731978335660,3.17001,3154.6,3154.4,0.3166]
[1731978335833,6.92493,3154.8,3154.4,0.3166]
[1731978336035,3.17007,3154.5,3154.4,0.3166]
[1731978336448,6.17007,3154.5,3154.4,0.3166]
[1731978336662,6.17007,3154.5,3153.7,0.3166]
[1731978336816,3.17034,3154.3,3153.7,0.3166]
[1731978337017,3.17048,3154.1,3153.7,0.3166]
[1731978337252,3.0,3154.2,3153.7,0.3166]
[1731978337774,3.0,3154.4,3153.8,3.17077]
[1731978337946,3.0,3154.4,3153.9,3.48725]
[1731978338119,3.0,3154.2,3153.9,0.3166]
[1731978338316,6.17037,3154.2,3153.9,0.3166]
[1731978338521,3.0,3154.2,3153.9,0.3166]
[1731978338815,3.0,3154.4,3153.9,3.48726]
[1731978339016,6.16995,3154.7,3153.9,0.3166]
[1731978339251,3.17,3154.6,3154.1,0.3166]
[1731978339567,3.92496,3154.8,3154.2,0.0312]
[1731978339568,6.17009,3154.5,3154.2,0.0312]
[1731978339865,3.16963,3155.0,3154.3,0.3166]
[1731978340017,3.16963,3155.0,3154.3,3.4868]
[1731978340376,3.16977,3154.8,3154.3,0.3166]
[1731978340858,3.16963,3155.0,3154.3,3.48684]
[1731978341166,3.16969,3154.9,3154.3,3.48684]
[1731978341461,0.62927661,3155.1,3154.4,0.3166]
[1731978341462,3.16989,3154.7,3154.4,0.3166]
[1731978342317,3.16989,3154.7,3154.2,0.3166]
[1731978342522,3.17008,3154.5,3154.2,0.3166]
[1731978343471,0.8152,3154.5,3154.1,0.3166]
[1731978343622,3.17036,3154.3,3154.1,0.3166]
[1731978344319,3.17036,3154.3,3153.6,3.96375]
[1731978344320,3.17037,3154.2,3153.7,0.3166]
[1731978344619,3.17077,3153.8,3153.7,0.3166]
[1731978344821,6.17077,3153.8,3153.7,0.3166]
[1731978345063,6.17077,3153.8,3152.9,3.17161]
[1731978345064,3.1711,3153.5,3153.0,0.7928]
[1731978345385,3.0,3153.8,3153.3,0.3166]
[1731978345674,0.8152,3154.3,3153.0,0.7928]
[1731978345675,3.0,3154.0,3153.4,3.48777]
[1731978346474,3.17047,3154.1,3153.7,0.3166]
[1731978346636,3.17059,3154.0,3153.7,0.3166]
[1731978346834,3.17047,3154.1,3153.7,0.3166]
[1731978347345,3.17047,3154.1,3153.8,0.3166]
[1731978347770,3.17067,3153.9,3153.8,0.3166]
[1731978348433,3.17111,3153.5,3153.1,0.3166]
[1731978348651,0.55,3153.9,3153.1,0.3166]
[1731978348859,3.17077,3153.8,3153.1,0.3166]
[1731978349168,3.17107,3153.6,3153.1,0.3166]
[1731978349373,3.0,3153.6,3153.1,0.3166]
[1731978349721,3.17094,3153.7,3153.1,0.3166]
[1731978349927,3.33194501,3154.0,3153.1,3.48806]
[1731978350130,0.63112816,3153.9,3153.4,0.3166]
[1731978350328,3.0,3153.8,3153.4,0.3166]
[1731978350720,6.17078,3153.8,3153.4,0.3166]
[1731978351549,3.0,3153.7,3153.5,0.3166]
[1731978351765,6.17087,3153.7,3153.5,0.3166]
[1731978351966,3.17097,3153.6,3153.5,0.3166]
[1731978352285,3.17097,3153.6,3152.4,3.17218]
[1731978352286,3.17142,3153.2,3152.4,3.17218]
[1731978352426,3.17142,3153.2,3152.5,0.3166]
[1731978352427,6.17148,3153.1,3152.5,0.3166]
[1731978352626,3.0,3153.1,3152.5,0.3166]
[1731978352880,3.17168,3152.9,3152.5,0.3166]
[1731978353184,3.0,3153.1,3152.5,0.3166]
[1731978353185,3.1719,3152.7,3152.5,0.3166]
[1731978353326,3.92548,3152.8,3152.5,0.3166]
[1731978353526,3.92548,3152.8,3151.9,3.17266]
[1731978353527,3.17203,3152.6,3152.1,0.3166]
[1731978354076,3.0,3152.5,3152.1,0.3166]
[1731978354274,3.17219,3152.4,3152.1,0.3166]
[1731978354457,3.17219,3152.4,3151.8,0.3166]